bitfinex/quotes_SOLUSD_20250525
["timestamp","ask_amount","ask_price","bid_price","bid_amount"]
[1748133607271,28.9566838,175.01,174.86,6.0794]
[1748133607272,13.27779395,175.01,174.86,6.0794]
[1748133607463,26.0,174.94,174.87,251.2]
[1748133607865,26.0,174.98,174.87,37.96]
[1748133608171,26.0,174.98,174.88,34.18]
[1748133608372,26.0,174.98,174.89,34.18]
[1748133608575,38.79270244,174.98,174.89,34.18]
[1748133608882,38.79270244,174.99,174.89,34.18]
[1748133609076,26.0,174.99,174.89,34.18]
[1748133609268,38.79270244,174.99,174.89,34.18]
[1748133609682,26.0,174.99,174.89,34.18]
[1748133609856,38.79270244,174.99,174.89,34.18]
[1748133610681,38.79270244,174.99,174.86,6.0794]
[1748133610682,12.79270244,174.97,174.86,6.0794]
[1748133610888,26.0,174.98,174.9,34.18]
[1748133611072,12.79270244,174.94,174.91,34.18]
[1748133611275,12.79270244,174.94,174.92,34.18]
[1748133611586,12.79270244,174.95,174.92,34.18]
[1748133611981,12.79270244,174.95,174.93,34.2]
[1748133612485,44.64964886,174.98,174.93,34.2]
[1748133612486,12.79270244,174.96,174.93,34.2]
[1748133612690,12.79270244,174.98,174.93,34.2]
[1748133613068,12.79270244,174.98,174.89,26.0]
[1748133613272,12.79270244,174.96,174.9,34.34216157]
[1748133613673,12.79270244,174.97,174.9,34.34216157]
[1748133613988,12.79270244,174.98,174.89,26.0]
[1748133614191,12.79270244,174.97,174.91,34.2]
[1748133614369,12.79270244,174.98,174.91,34.2]
[1748133614769,12.79270244,174.98,174.89,26.0]
[1748133614770,12.79270244,174.96,174.92,34.2]
[1748133614970,12.79270244,174.95,174.93,34.2]
[1748133615390,18.64964886,174.9,174.8,6.1263]
[1748133615604,18.64964886,174.9,174.84,34.2]
[1748133615761,12.79270244,174.86,174.84,34.2]
[1748133616091,31.4423513,174.91,174.84,34.2]
[1748133616978,12.79270244,174.9,174.84,34.2]
[1748133617586,12.79270244,174.9,174.85,251.48]
[1748133617974,12.79270244,174.89,174.85,251.48]
[1748133618168,12.79270244,174.89,174.85,213.48]
[1748133618396,12.79270244,174.89,174.86,72.22]
[1748133618578,12.79270244,174.88,174.87,34.22]
[1748133619492,12.79270244,174.88,174.8,32.1263]
[1748133619493,12.79270244,174.88,174.8,6.1263]
[1748133619666,18.64964886,174.88,174.87,34.22]
[1748133619880,37.79979605,174.88,174.87,34.22]
[1748133620389,18.64964886,174.87,174.74,6.0931]
[1748133620571,19.15014719,174.85,174.84,34.22]
[1748133621691,19.15014719,174.86,174.84,34.22]
[1748133622395,19.15014719,174.85,174.74,6.23526157]
[1748133622579,19.15014719,174.85,174.84,34.22]
[1748133623389,37.79979605,174.85,174.74,6.0931]
[1748133623604,18.64964886,174.85,174.84,34.22]
[1748133623908,37.79979605,174.85,174.84,34.22]
[1748133624075,37.79979605,174.85,174.74,6.0931]
[1748133624392,26.0,174.87,174.74,6.0931]
[1748133624611,18.64964886,174.9,174.74,6.0931]
[1748133625305,18.64964886,174.9,174.84,34.22]
[1748133625499,19.15014719,174.86,174.84,34.22]
[1748133626212,19.15014719,174.86,174.74,6.0931]
[1748133626371,19.15014719,174.86,174.85,34.22]
[1748133626571,19.15014719,174.87,174.85,34.22]
[1748133627494,19.15014719,174.87,174.86,251.62]
[1748133627702,18.64964886,174.9,174.86,251.62]
[1748133627994,45.15014719,174.87,174.86,251.62]
[1748133628314,26.0,174.87,174.86,38.02]
[1748133628481,45.15014719,174.87,174.86,34.24]
[1748133629985,63.79979605,174.87,174.86,34.24]
[1748133630497,63.79979605,174.87,174.74,6.0931]
[1748133630498,18.64964886,174.86,174.74,6.0931]
[1748133630706,19.15014719,174.84,174.74,6.0931]
[1748133631009,19.15014719,174.84,174.83,45.20512755]
[1748133631380,19.15014719,174.84,174.83,10.96512755]
[1748133631577,26.0,174.84,174.83,45.20512755]
[1748133631777,45.15014719,174.84,174.83,45.20512755]
[1748133632899,63.79979605,174.84,174.83,10.96512755]
[1748133633201,37.79979605,174.84,174.83,45.20512755]
[1748133633996,37.79979605,174.84,174.83,10.96512755]
[1748133634511,56.94994324,174.84,174.69,0.14216157]
[1748133634799,19.15014719,174.74,174.7,34.24]
[1748133634982,19.15014719,174.73,174.7,34.24]
[1748133635174,26.0,174.76,174.7,34.24]
[1748133635392,19.15014719,174.77,174.68,5.8693]
[1748133635591,19.15014719,174.75,174.68,5.8693]
[1748133636095,19.15014719,174.74,174.68,5.8693]
[1748133636295,45.15014719,174.8,174.59,1.552]
[1748133636508,19.15014719,174.72,174.6,0.14216157]
[1748133636719,19.15014719,174.73,174.6,34.38216157]
[1748133636896,19.15014719,174.72,174.6,34.38216157]
[1748133637197,19.15014719,174.71,174.6,34.38216157]
[1748133637402,19.15014719,174.72,174.6,34.38216157]
[1748133637611,19.15014719,174.72,174.61,253.32]
[1748133638397,19.15014719,174.72,174.62,6.3693]
[1748133638804,18.64964886,174.72,174.62,6.3693]
[1748133639002,19.15014719,174.73,174.62,6.3693]
[1748133639205,44.64964886,174.75,174.62,6.3693]
[1748133639395,19.15014719,174.73,174.62,6.3693]
[1748133640388,19.15014719,174.72,174.62,6.3693]
[1748133640588,44.64964886,174.75,174.62,6.3693]
[1748133640589,19.15014719,174.73,174.62,6.3693]
[1748133641697,12.94322089,174.73,174.62,6.3693]
[1748133642724,12.94322089,174.72,174.62,6.3693]
[1748133643316,12.94322089,174.73,174.62,6.3693]
[1748133643612,12.94322089,174.74,174.62,6.3693]
[1748133643783,12.94322089,174.73,174.62,6.3693]
[1748133645314,12.94322089,174.72,174.62,6.3693]
[1748133645495,0.5,174.72,174.52,8.0536]
[1748133645700,0.5,174.72,174.47,111.65733636]
[1748133645701,12.94322089,174.56,174.47,111.65733636]
[1748133646003,16.36347731,174.72,174.49,1.5099]
[1748133646179,18.64964886,174.64,174.51,26.0]
[1748133646382,12.94322089,174.63,174.49,1.5099]
[1748133646605,18.64964886,174.61,174.49,27.5099]
[1748133646800,12.94322089,174.62,174.49,1.5099]
[1748133647000,18.64964886,174.62,174.49,1.5099]
[1748133647204,18.64964886,174.63,174.49,1.5099]
[1748133647501,18.64964886,174.59,174.5,287.78]
[1748133647685,10.5,174.72,174.5,313.78]
[1748133647899,18.64964886,174.63,174.5,313.78]
[1748133648205,19.19924585,174.64,174.5,313.78]
[1748133648206,37.84889471,174.62,174.5,60.26]
[1748133648408,18.64964886,174.62,174.5,60.26]
[1748133648605,19.19924585,174.63,174.58,19.19820888]
[1748133648606,19.19820888,174.63,174.58,19.19820888]
[1748133648805,19.19820888,174.64,174.59,34.28]
[1748133649394,19.19820888,174.62,174.59,34.28]
[1748133650098,19.19820888,174.62,174.56,19.19820888]
[1748133650099,19.19820888,174.62,174.6,34.28]
[1748133650511,18.64964886,174.64,174.49,1.5099]
[1748133650512,37.84785774,174.61,174.49,1.5099]
[1748133650686,19.19820888,174.61,174.55,19.19820888]
[1748133650892,19.19820888,174.62,174.57,19.19820888]
[1748133651196,19.19820888,174.62,174.58,34.28]
[1748133651397,18.64964886,174.63,174.58,53.47820888]
[1748133651591,37.84785774,174.63,174.58,34.28]
[1748133651799,19.19820888,174.62,174.58,34.28]
[1748133652218,18.64964886,174.61,174.58,34.28]
[1748133652415,26.0,174.64,174.58,34.28]
[1748133652594,37.84785774,174.63,174.58,53.47820888]
[1748133652915,18.64964886,174.63,174.59,19.19820888]
[1748133653227,18.64964886,174.63,174.58,53.47820888]
[1748133653801,18.64964886,174.63,174.59,19.19820888]
[1748133654112,18.64964886,174.63,174.58,34.28]
[1748133654319,18.64964886,174.63,174.58,53.47820888]
[1748133654520,37.84785774,174.63,174.58,53.47820888]
[1748133655206,37.84785774,174.63,174.58,19.19820888]
[1748133656312,37.84785774,174.63,174.59,34.28]
[1748133656493,18.64964886,174.63,174.59,34.28]
[1748133657134,18.64964886,174.63,174.58,19.19820888]
[1748133657302,18.64964886,174.63,174.6,34.28]
[1748133657488,26.0,174.64,174.61,253.6]
[1748133657892,26.0,174.64,174.61,272.79820888]
[1748133658617,26.0,174.64,174.61,253.6]
[1748133658813,19.19820888,174.63,174.61,253.6]
[1748133659188,26.0,174.64,174.61,253.6]
[1748133659392,26.0,174.64,174.59,19.19820888]
[1748133659393,45.19820888,174.64,174.62,34.28]
[1748133660714,37.84785774,174.63,174.62,34.28]
[1748133661015,18.64964886,174.62,174.57,6.495]
[1748133661206,18.64964886,174.62,174.58,34.28]
[1748133661417,19.19820888,174.61,174.58,34.28]
[1748133661592,37.84785774,174.62,174.58,34.28]
[1748133661794,18.64964886,174.62,174.57,25.19320888]
[1748133662101,37.84785774,174.62,174.57,25.19320888]
[1748133662602,19.19820888,174.62,174.57,25.19320888]
[1748133662918,18.64964886,174.63,174.59,19.19820888]
[1748133663397,18.64964886,174.63,174.58,34.28]
[1748133664200,19.1951757,174.63,174.58,34.28]
[1748133664722,19.1951757,174.59,174.48,26.14216157]
[1748133664909,18.64964886,174.63,174.5,40.775]
[1748133665115,18.64964886,174.58,174.51,34.28]
[1748133665417,19.1951757,174.6,174.52,34.28]
[1748133665619,37.84482456,174.61,174.52,34.28]
[1748133666319,19.1951757,174.62,174.52,34.28]
[1748133666520,26.0,174.64,174.52,34.28]
[1748133666521,45.1951757,174.64,174.52,34.28]
[1748133666705,19.1951757,174.63,174.52,34.28]
[1748133667519,19.1951757,174.63,174.53,254.58]
[1748133667710,45.1951757,174.64,174.53,254.58]
[1748133667910,19.1951757,174.63,174.53,254.58]
[1748133668303,18.64964886,174.63,174.53,254.58]
[1748133668508,37.84482456,174.63,174.53,254.58]
[1748133668813,26.0,174.64,174.54,1.6365]
[1748133669203,45.1951757,174.64,174.54,1.6365]
[1748133670437,26.0,174.64,174.54,1.6365]
[1748133670610,19.1951757,174.63,174.54,1.6365]
[1748133670927,45.1951757,174.64,174.54,1.6365]
[1748133671123,19.1951757,174.63,174.54,1.6365]
[1748133671321,26.0,174.64,174.55,6.495]
[1748133671526,18.64964886,174.65,174.55,6.495]
[1748133671828,12.95403343,174.64,174.55,6.495]
[1748133672526,12.95403343,174.63,174.55,6.495]
[1748133672834,12.95403343,174.62,174.55,6.495]
[1748133673014,12.95403343,174.6,174.56,34.3]
[1748133673205,12.95403343,174.6,174.57,34.3]
[1748133673406,12.95403343,174.61,174.57,34.3]
[1748133674329,18.64964886,174.63,174.57,34.3]
[1748133674534,31.60368229,174.63,174.57,34.3]
[1748133675124,12.95403343,174.69,174.57,34.3]
[1748133675327,12.95403343,174.65,174.57,34.3]
[1748133675641,6.45847817,174.65,174.58,34.3]
[1748133675819,18.64964886,174.58,174.48,8.1315]
[1748133676014,12.95403343,174.57,174.49,34.3]
[1748133677521,12.95403343,174.57,174.5,254.58]
[1748133678632,12.95403343,174.57,174.5,213.96]
[1748133678840,26.0,174.63,174.51,74.94]
[1748133679158,12.95403343,174.63,174.53,6.495]
[1748133679441,5.97086677,174.68,174.53,6.495]
[1748133679442,12.95403343,174.61,174.53,6.495]
[1748133679692,12.95403343,174.6,174.54,34.3]
[1748133679814,12.95403343,174.61,174.54,34.3]
[1748133680016,12.95403343,174.62,174.54,34.3]
[1748133680718,12.95403343,174.61,174.54,34.3]
[1748133681245,12.95403343,174.62,174.54,34.3]
[1748133681622,19.20036485,174.61,174.54,34.3]
[1748133682826,18.64964886,174.63,174.54,34.3]
[1748133683024,19.20036485,174.62,174.54,34.3]
[1748133683320,19.20036485,174.61,174.54,34.3]
[1748133684559,19.20036485,174.62,174.54,34.3]
[1748133684763,18.64964886,174.6,174.55,34.3]
[1748133684941,19.20036485,174.59,174.55,34.3]
[1748133685142,19.20036485,174.59,174.56,34.3]
[1748133685545,19.20036485,174.59,174.53,6.495]
[1748133685546,19.20036485,174.59,174.57,34.3]
[1748133687340,19.20036485,174.58,174.53,6.495]
[1748133687655,19.20036485,174.6,174.54,288.92]
[1748133687844,18.64964886,174.62,174.54,74.94]
[1748133687845,19.20036485,174.59,174.54,74.94]
[1748133689368,18.64964886,174.62,174.54,74.94]
[1748133689541,19.20036485,174.58,174.54,34.3]
[1748133689729,19.20036485,174.59,174.54,34.3]
[1748133690122,19.20036485,174.58,174.53,6.495]
[1748133690352,19.20036485,174.57,174.54,34.3]
[1748133690553,19.20036485,174.57,174.53,6.495]
[1748133690736,19.20036485,174.55,174.52,1.6365]
[1748133691055,18.64964886,174.59,174.54,34.3]
[1748133691224,19.20036485,174.57,174.54,34.3]
[1748133691927,18.64964886,174.59,174.54,34.3]
[1748133692122,19.20036485,174.57,174.54,34.3]
[1748133692327,37.85001371,174.59,174.54,34.3]
[1748133692934,18.64964886,174.59,174.54,34.3]
[1748133693344,4.02532607,174.63,174.54,34.3]
[1748133693646,19.20036485,174.6,174.54,34.3]
[1748133694362,19.20036485,174.56,174.55,34.3]
[1748133694571,37.85001371,174.56,174.49,6.4561]
[1748133694724,18.64964886,174.57,174.47,105.11363636]
[1748133695051,19.20036485,174.51,174.48,34.3]
[1748133695848,19.20036485,174.51,174.47,104.61363636]
[1748133697138,19.20036485,174.51,174.48,34.3]
[1748133697336,2.89577555,174.52,174.48,34.3]
[1748133697534,18.64964886,174.54,174.49,214.04]
[1748133697746,19.20036485,174.5,174.49,214.04]
[1748133698047,19.20036485,174.51,174.49,74.36]
[1748133698263,19.20036485,174.5,174.49,34.3]
[1748133700763,18.64964886,174.54,174.49,34.3]
[1748133701065,19.20036485,174.51,174.49,34.3]
[1748133701270,19.20036485,174.5,174.47,104.61363636]
[1748133701446,19.20036485,174.49,174.48,34.3]
[1748133701758,12.97841099,174.49,174.48,34.3]
[1748133701964,12.97841099,174.5,174.48,34.3]
[1748133702468,18.64964886,174.54,174.48,34.3]
[1748133702469,12.97841099,174.51,174.48,34.3]
[1748133703170,12.97841099,174.5,174.48,34.3]
[1748133703353,12.97841099,174.49,174.48,34.3]
[1748133704969,18.64964886,174.54,174.48,34.3]
[1748133705147,12.97841099,174.49,174.48,34.3]
[1748133705645,12.97841099,174.49,174.47,104.61363636]
[1748133705646,18.64964886,174.48,174.47,104.61363636]
[1748133705863,31.62805985,174.48,174.47,6.5453664]
[1748133706085,33.72470077,174.48,174.47,6.5453664]
[1748133706396,2.09664092,174.48,174.47,6.5453664]
[1748133706575,15.07505191,174.48,174.47,6.5453664]
[1748133706882,15.07505191,174.48,174.47,40.8653664]
[1748133707077,12.97841099,174.48,174.47,40.8653664]
[1748133707466,12.97841099,174.48,174.47,295.0253664]
[1748133708880,18.64964886,174.51,174.47,295.0253664]
[1748133709089,12.97841099,174.48,174.47,295.0253664]
[1748133710795,12.97841099,174.48,174.47,80.9253664]
[1748133711002,12.97841099,174.48,174.47,46.6053664]
[1748133711289,12.97841099,174.48,174.47,79.8556164]
[1748133711989,12.97841099,174.48,174.47,5.4756164]
[1748133711990,18.64964886,174.48,174.47,5.4756164]
[1748133712170,18.64964886,174.48,174.47,34.32]
[1748133712171,57.62805985,174.48,174.47,34.32]
[1748133712487,57.62805985,174.48,174.38,8.1849]
[1748133712787,12.97841099,174.41,174.38,8.1849]
[1748133713285,18.64964886,174.47,174.38,8.1849]
[1748133713494,12.97841099,174.4,174.39,34.32]
[1748133713681,12.97841099,174.4,174.38,8.1849]
[1748133713883,18.64964886,174.47,174.39,34.32]
[1748133714185,12.97841099,174.4,174.39,34.32]
[1748133714772,26.0,174.45,174.39,34.32]
[1748133714978,12.97841099,174.4,174.39,34.32]
[1748133715494,12.97841099,174.4,174.34,8.0988]
[1748133715697,12.97841099,174.35,174.29,6.5794]
[1748133715883,12.97841099,174.33,174.3,34.32]
[1748133716085,12.97841099,174.34,174.29,6.0794]
[1748133716269,18.64964886,174.41,174.29,6.0794]
[1748133716792,12.97841099,174.35,174.29,6.0794]
[1748133716970,18.64964886,174.41,174.29,5.5794]
[1748133717166,12.97841099,174.35,174.29,5.5794]
[1748133717372,26.0,174.42,174.29,5.5794]
[1748133717595,6.40925566,174.46,174.3,290.52]
[1748133717893,12.97841099,174.38,174.3,290.52]
[1748133718100,18.64964886,174.42,174.3,290.52]
[1748133718322,18.64964886,174.41,174.3,76.32]
[1748133718476,12.97841099,174.37,174.3,76.32]
[1748133718676,12.97841099,174.36,174.3,34.32]
[1748133718906,12.97841099,174.42,174.3,34.32]
[1748133719208,18.64964886,174.41,174.3,34.32]
[1748133719419,12.97841099,174.35,174.29,5.5794]
[1748133719598,12.97841099,174.34,174.29,5.5794]
[1748133719771,12.97841099,174.34,174.3,34.34]
[1748133719975,18.64964886,174.38,174.31,34.34]
[1748133720175,12.97841099,174.32,174.31,34.34]
[1748133720478,18.64964886,174.38,174.31,34.34]
[1748133720879,12.97841099,174.42,174.31,34.34]
[1748133721089,12.97841099,174.34,174.31,34.34]
[1748133721292,12.97841099,174.32,174.27,11.30778778]
[1748133721591,12.97841099,174.33,174.28,34.34]
[1748133721786,12.97841099,174.29,174.28,34.34]
[1748133722482,12.97841099,174.29,174.27,11.30778778]
[1748133722681,18.64964886,174.35,174.28,34.34]
[1748133722881,22.97841099,174.42,174.29,8.0]
[1748133722882,12.97841099,174.42,174.29,8.0]
[1748133723093,12.97841099,174.35,174.29,8.0]
[1748133723393,26.0,174.42,174.29,8.0]
[1748133723695,13.00078107,174.42,174.32,13.00078107]
[1748133723895,13.00078107,174.34,174.29,8.0]
[1748133724200,13.00078107,174.36,174.31,13.00078107]
[1748133724404,13.00078107,174.36,174.29,8.0]
[1748133724575,26.0,174.38,174.29,8.0]
[1748133724777,18.64964886,174.38,174.28,34.34]
[1748133725090,13.00078107,174.33,174.29,34.34]
[1748133725271,18.64964886,174.34,174.27,11.30778778]
[1748133725477,18.64964886,174.34,174.28,34.34]
[1748133725994,13.00078107,174.33,174.28,34.34]
[1748133726181,18.64964886,174.34,174.28,34.34]
[1748133726375,26.0,174.34,174.27,11.30778778]
[1748133726577,13.00078107,174.28,174.27,11.30778778]
[1748133726783,31.65042993,174.33,174.27,45.64778778]
[1748133726977,13.00078107,174.29,174.27,45.64778778]
[1748133727177,2.0,174.39,174.27,45.64778778]
[1748133727388,18.79181043,174.42,174.28,8.0]
[1748133727579,13.00078107,174.33,174.29,259.8]
[1748133727780,18.79181043,174.41,174.29,259.8]
[1748133728103,29.41003673,174.42,174.29,259.8]
[1748133728104,13.00078107,174.3,174.29,259.8]
[1748133728304,18.64964886,174.37,174.27,11.30778778]
[1748133728305,26.0,174.32,174.27,11.30778778]
[1748133728479,18.64964886,174.31,174.29,83.66]
[1748133728680,13.00078107,174.3,174.29,83.66]
[1748133728883,18.64964886,174.31,174.29,83.66]
[1748133729081,13.00078107,174.3,174.29,83.66]
[1748133729386,26.14216157,174.36,174.29,83.66]
[1748133729591,26.0,174.31,174.29,83.66]
[1748133729908,26.0,174.28,174.27,11.30778778]
[1748133730079,44.64964886,174.28,174.27,11.30778778]
[1748133730702,57.65042993,174.28,174.27,11.30778778]
[1748133730878,44.64964886,174.28,174.27,11.30778778]
[1748133731079,44.64964886,174.28,174.27,45.64778778]
[1748133731296,18.64964886,174.28,174.27,45.64778778]
[1748133731501,31.65042993,174.28,174.27,45.64778778]
[1748133732282,18.64964886,174.28,174.27,45.64778778]
[1748133732604,34.54218515,174.28,174.27,45.64778778]
[1748133732810,21.54140408,174.28,174.27,45.64778778]
[1748133732985,34.54218515,174.28,174.27,45.64778778]
[1748133733400,21.54140408,174.28,174.27,45.64778778]
[1748133733603,34.54218515,174.28,174.27,45.64778778]
[1748133733804,34.54218515,174.28,174.19,8.0]
[1748133733996,18.64964886,174.27,174.19,8.0]
[1748133734197,18.64964886,174.29,174.19,8.0]
[1748133734384,13.00078107,174.23,174.19,8.0]
[1748133734595,44.64964886,174.29,174.19,21.00078107]
[1748133734793,13.00078107,174.25,174.2,13.00078107]
[1748133734997,44.64964886,174.29,174.21,34.36]
[1748133735290,44.64964886,174.29,174.19,8.0]
[1748133735291,18.64964886,174.28,174.19,8.0]
[1748133735492,18.64964886,174.19,174.01,6.0139]
[1748133735690,18.64964886,174.19,174.0,3.5108]
[1748133735691,13.00078107,174.16,174.11,1.5108]
[1748133735903,13.00078107,174.14,174.11,1.0108]
[1748133736109,18.64964886,174.19,174.11,1.0108]
[1748133736316,43.209236,174.22,174.14,13.00078107]
[1748133736511,13.00078107,174.22,174.11,1.0108]
[1748133736684,13.00078107,174.21,174.15,13.00078107]
[1748133736884,18.64964886,174.24,174.16,13.00078107]
[1748133737102,13.00078107,174.23,174.17,13.00078107]
[1748133737312,26.0,174.25,174.18,34.36]
[1748133737494,13.00078107,174.21,174.19,273.88]
[1748133737800,13.00078107,174.2,174.19,214.38]
[1748133737999,31.65042993,174.2,174.19,275.8]
[1748133738207,31.65042993,174.2,174.19,310.16]
[1748133738517,31.65042993,174.2,174.19,275.8]
[1748133738518,57.65042993,174.2,174.19,275.8]
[1748133738822,57.65042993,174.2,174.0,2.0]
[1748133738823,18.64964886,174.16,174.01,6.3448]
[1748133739025,18.64964886,174.16,174.03,13.00078107]
[1748133739192,18.64964886,174.16,174.02,1.6209]
[1748133739395,26.0,174.11,174.02,1.6209]
[1748133739604,13.00078107,174.03,174.0,2.0]
[1748133739826,18.64964886,174.06,174.0,2.0]
[1748133739996,13.00078107,174.01,174.0,2.0]
[1748133740188,26.0,174.02,174.0,0.44986902]
[1748133740420,26.0,174.02,173.86,1.6209]
[1748133740421,26.0,173.99,173.86,1.6209]
[1748133741499,10.0,173.87,173.72,2.98313599]
[1748133741696,26.0,173.89,173.72,2.98313599]
[1748133741992,10.0,173.91,173.72,2.98313599]
[1748133742302,10.0,173.95,173.66,21.65044802]
[1748133742493,18.64964886,173.91,173.68,10.0]
[1748133742813,18.64964886,173.91,173.66,11.65044802]
[1748133742814,26.0,173.87,173.66,11.65044802]
[1748133743033,26.0,173.87,173.67,34.38]
[1748133743212,26.0,173.87,173.66,11.65044802]
[1748133743390,26.0,173.87,173.68,34.38]
[1748133743593,29.39087631,173.9,173.67,6.2203]
[1748133743914,26.0,173.83,173.67,6.2203]
[1748133744329,10.0,173.86,173.67,6.2203]
[1748133744495,26.0,173.83,173.67,6.2203]
[1748133744689,26.0,173.75,173.66,11.65044802]
[1748133745005,26.0,173.8,173.71,19.39087631]
[1748133745214,2.83722238,173.85,173.67,11.5435]
[1748133745404,3.1204927,173.94,173.66,11.65044802]
[1748133745601,8.90979672,173.91,173.66,11.65044802]
[1748133745808,2.0,173.92,173.66,11.65044802]
[1748133746021,12.0,173.92,173.66,11.65044802]
[1748133746194,19.39087631,173.8,173.66,11.65044802]
[1748133746401,26.0,173.86,173.66,11.65044802]
[1748133746904,26.0,173.86,173.76,19.39087631]
[1748133747115,26.0,173.87,173.73,6.2203]
[1748133747515,9.08943423,173.91,173.77,19.39087631]
[1748133747697,9.08943423,173.91,173.75,19.39087631]
[1748133748128,19.39087631,173.9,173.74,214.74]
[1748133748325,10.0,173.92,173.74,214.74]
[1748133748535,9.08943423,173.89,173.74,214.74]
[1748133748737,6.69961572,173.96,173.74,214.74]
[1748133748913,16.32320324,173.94,173.74,214.74]
[1748133749102,15.82320324,173.94,173.74,214.74]
[1748133749702,19.39087631,174.0,173.84,19.39087631]
[1748133749898,6.69961572,174.04,173.88,19.39087631]
[1748133750105,6.69961572,174.04,173.89,214.8]
[1748133750106,19.64155826,174.04,173.89,214.8]
[1748133750409,26.0,173.97,173.89,214.8]
[1748133750612,19.39087631,174.0,173.89,214.8]
[1748133750796,26.0,173.99,173.89,214.8]
[1748133750997,19.39087631,173.9,173.89,214.8]
[1748133751238,36.0,173.95,173.89,214.8]
[1748133751414,10.0,173.96,173.89,214.8]
[1748133751729,26.0,173.97,173.89,214.8]
[1748133751730,26.0,173.92,173.89,214.8]
[1748133752099,38.78175262,173.9,173.89,214.8]
[1748133752298,26.0,173.92,173.89,214.8]
[1748133752530,26.0,173.87,173.81,8.0202]
[1748133752726,26.0,173.93,173.82,214.8]
[1748133753029,29.39087631,174.0,173.88,19.39087631]
[1748133753030,19.39087631,173.95,173.88,19.39087631]
[1748133753337,17.228013,174.02,173.93,19.39087631]
[1748133753513,19.39087631,174.1,173.94,19.39087631]
[1748133753703,45.39087631,173.98,173.82,214.8]
[1748133753919,17.224056,174.07,173.93,19.39087631]
[1748133754120,6.69961572,174.09,173.98,19.39087631]
[1748133754323,26.0,174.06,173.99,214.84]
[1748133754539,19.39087631,174.0,173.99,214.84]
[1748133754730,38.78175262,174.0,173.99,214.84]
[1748133754936,26.0,173.97,173.88,6.4057]
[1748133755312,19.39087631,174.0,173.88,6.4057]
[1748133755513,26.0,173.98,173.88,6.4057]
[1748133755713,26.0,173.96,173.88,6.4057]
[1748133756119,25.34926458,174.01,173.88,6.4057]
[1748133756120,6.69961572,174.01,173.92,19.39087631]
[1748133756322,18.64964886,174.06,173.95,19.39087631]
[1748133756528,26.0,174.03,173.89,0.14216157]
[1748133756931,19.39087631,173.96,173.89,19.39087631]
[1748133757117,18.64964886,174.02,173.88,25.79657631]
[1748133757306,2.97688888,174.06,173.89,18.79181043]
[1748133757507,6.69961572,174.09,173.91,0.14216157]
[1748133757727,6.69961572,174.09,173.93,19.39087631]
[1748133757728,18.64964886,174.08,173.93,19.39087631]
[1748133757907,21.62577577,174.08,173.9,214.86]
[1748133758112,44.64964886,174.04,173.9,214.86]
[1748133758313,44.64964886,174.04,173.91,19.39087631]
[1748133758511,19.39087631,173.97,173.91,19.39087631]
[1748133758718,19.39087631,173.95,173.9,214.86]
[1748133759034,26.0,173.98,173.9,234.25087631]
[1748133759245,19.39087631,173.96,173.9,234.25087631]
[1748133759533,26.0,173.99,173.9,214.86]
[1748133759747,19.39087631,173.94,173.9,214.86]
[1748133760337,19.39087631,173.91,173.9,214.86]
[1748133760507,18.64964886,173.96,173.9,214.86]
[1748133760713,19.39087631,173.91,173.9,214.86]
[1748133761138,26.0,173.93,173.9,214.86]
[1748133761447,45.39087631,173.91,173.9,214.86]
[1748133761735,26.0,173.88,173.82,6.1802]
[1748133761912,19.39087631,173.84,173.83,214.84]
[1748133762109,26.0,173.87,173.83,214.84]
[1748133762309,19.39087631,173.9,173.85,19.39087631]
[1748133762529,26.0,173.95,173.84,19.39087631]
[1748133762530,26.0,173.93,173.84,19.39087631]
[1748133762727,26.0,173.93,173.86,19.39087631]
[1748133762927,26.0,173.93,173.82,6.1802]